[Event "MČR v bleskovém šachu družstev 2019"]
[Site "Teplice, Czech Republic"]
[Date "2019.09.14"]
[Round "4.10"]
[White "Studnicka, Tomas"]
[Black "Kopta, Pavel"]
[Result "1/2-1/2"]
[TimeControl "3 mim. + 2 s"]
[WhiteTitle "IM"]
[BlackTitle "FM"]
[BlackFideId "309109"]
[WhiteElo "2215"]
[BlackElo "2234"]

1. d4 {[%clk 00:03:03]} Nf6 {[%clk 00:03:03]} {[%emt 00:00:01]} 2. Nf3 {[%clk
00:03:05]} d5 {[%clk 00:03:01]} {[%emt 00:00:04]} 3. Bf4 {[%clk 00:03:05]}
{[%emt 00:00:01]} c5 {[%clk 00:02:53]} {[%emt 00:00:10]} 4. e3 {[%clk
00:03:04]} {[%emt 00:00:04]} Nc6 {[%clk 00:02:52]} {[%emt 00:00:03]} 5. c3
{[%clk 00:03:05]} {[%emt 00:00:01]} e6 {[%clk 00:02:39]} {[%emt 00:00:15]} 6.
Nbd2 {[%clk 00:03:05]} {[%emt 00:00:02]} Bd6 {[%clk 00:02:37]} {[%emt
00:00:04]} 7. Bg3 {[%clk 00:03:06]} {[%emt 00:00:01]} O-O {[%clk 00:02:31]}
{[%emt 00:00:07]} 8. Bd3 {[%clk 00:03:07]} b6 {[%clk 00:02:17]} {[%emt
00:00:16]} 9. e4 {[%clk 00:03:08]} dxe4 {[%clk 00:02:02]} {[%emt 00:00:17]} 10.
Nxe4 {[%clk 00:03:07]} {[%emt 00:00:03]} Nxe4 {[%clk 00:01:48]} {[%emt
00:00:17]} 11. Bxe4 {[%clk 00:03:04]} {[%emt 00:00:05]} Bb7 {[%clk 00:01:48]}
{[%emt 00:00:01]} 12. Qa4 {[%clk 00:03:02]} {[%emt 00:00:04]} Qc7 {[%clk
00:01:32]} {[%emt 00:00:18]} 13. dxc5 {[%clk 00:03:01]} {[%emt 00:00:04]} bxc5
{[%clk 00:01:30]} {[%emt 00:00:04]} 14. Bxh7+ {[%clk 00:02:50]} {[%emt
00:00:14]} Kxh7 {[%clk 00:01:20]} {[%emt 00:00:11]} 15. Qh4+ {[%clk 00:02:51]}
{[%emt 00:00:01]} Kg8 {[%clk 00:01:04]} {[%emt 00:00:19]} 16. Ng5 {[%clk
00:02:42]} {[%emt 00:00:10]} Rfe8 {[%clk 00:01:00]} {[%emt 00:00:06]} 17. O-O
{[%clk 00:02:36]} {[%emt 00:00:08]} Rad8 {[%clk 00:00:27]} {[%emt 00:00:35]} 18.
Qh7+ {[%clk 00:02:23]} {[%emt 00:00:14]} Kf8 {[%clk 00:00:29]} {[%emt
00:00:01]} 19. Bh4 {[%clk 00:02:24]} Be5 {[%clk 00:00:16]} {[%emt 00:00:14]} 20.
f4 {[%clk 00:02:02]} {[%emt 00:00:24]} Bf6 {[%clk 00:00:16]} {[%emt 00:00:02]}
21. Qh5 {[%clk 00:01:39]} {[%emt 00:00:25]} Rd2 {[%clk 00:00:13]} {[%emt
00:00:05]} 22. Nh7+ {[%clk 00:01:36]} {[%emt 00:00:05]} Ke7 {[%clk 00:00:14]}
{[%emt 00:00:01]} 23. Nxf6 {[%clk 00:01:31]} {[%emt 00:00:06]} gxf6 {[%clk
00:00:14]} {[%emt 00:00:03]} 24. Bxf6+ {[%clk 00:01:32]} {[%emt 00:00:01]} Kd7
{[%clk 00:00:14]} {[%emt 00:00:02]} 25. Qxf7+ {[%clk 00:01:28]} {[%emt
00:00:06]} Ne7 {[%clk 00:00:15]} {[%emt 00:00:02]} 26. Rad1 {[%clk 00:01:06]}
{[%emt 00:00:23]} Qd6 {[%clk 00:00:15]} {[%emt 00:00:01]} 27. Rxd2 {[%clk
00:00:51]} {[%emt 00:00:18]} Qxd2 {[%emt 00:00:01]} 28. Rf2 Qe1+ {[%clk
00:00:14]} {[%emt 00:00:02]} 29. Rf1 {[%clk 00:00:52]} Qe3+ {[%clk 00:00:15]}
30. Rf2 {[%clk 00:00:50]} {[%emt 00:00:05]} Qe1+ {[%emt 00:00:05]} 1/2-1/2

[Event "MČR v bleskovém šachu družstev 2019"]
[Site "Teplice, Czech Republic"]
[Date "2019.09.14"]
[Round "4.11"]
[White "Chmel, Kristian"]
[Black "Cech, Pavel"]
[Result "0-1"]
[TimeControl "3 mim. + 2 s"]
[BlackTitle "IM"]
[WhiteFideId "344281"]
[WhiteElo "2097"]
[BlackElo "2387"]

1. e4 {[%clk 00:03:02]} {[%emt 00:00:02]} Nf6 {[%clk 00:03:03]} {[%emt
00:00:02]} 2. e5 {[%clk 00:03:00]} {[%emt 00:00:04]} Ne4 {[%clk 00:03:04]}
{[%emt 00:00:01]} 3. d3 {[%clk 00:02:41]} {[%emt 00:00:21]} Nc5 {[%clk
00:03:04]} {[%emt 00:00:01]} 4. Nc3 {[%clk 00:02:30]} {[%emt 00:00:13]} d5
{[%clk 00:03:03]} {[%emt 00:00:04]} 5. d4 {[%clk 00:02:19]} {[%emt 00:00:13]}
Ne6 {[%clk 00:03:03]} {[%emt 00:00:01]} 6. f4 {[%clk 00:02:10]} {[%emt
00:00:11]} g6 {[%clk 00:03:04]} {[%emt 00:00:02]} 7. Nf3 {[%clk 00:02:06]}
{[%emt 00:00:05]} c5 {[%clk 00:02:52]} {[%emt 00:00:14]} 8. dxc5 {[%clk
00:01:48]} {[%emt 00:00:21]} d4 {[%clk 00:02:52]} {[%emt 00:00:02]} 9. Ne4
{[%clk 00:01:34]} {[%emt 00:00:16]} Nc6 {[%clk 00:02:39]} {[%emt 00:00:15]} 10.
Bc4 {[%clk 00:01:24]} {[%emt 00:00:12]} Nxc5 {[%clk 00:02:32]} {[%emt
00:00:10]} 11. Nxc5 {[%clk 00:00:43]} {[%emt 00:00:43]} Qa5+ {[%clk 00:02:32]}
{[%emt 00:00:01]} 12. Bd2 {[%clk 00:00:42]} {[%emt 00:00:03]} Qxc5 {[%clk
00:02:33]} {[%emt 00:00:01]} 13. Qe2 {[%clk 00:00:27]} {[%emt 00:00:17]} Bg7
{[%clk 00:02:14]} {[%emt 00:00:20]} 14. O-O-O {[%clk 00:00:17]} {[%emt
00:00:13]} O-O {[%clk 00:02:06]} {[%emt 00:00:10]} 15. h4 {[%clk 00:00:16]}
{[%emt 00:00:03]} Bf5 {[%clk 00:01:56]} {[%emt 00:00:11]} 16. h5 {[%clk
00:00:07]} {[%emt 00:00:12]} Bxc2 {[%clk 00:01:12]} {[%emt 00:00:46]} 17. Ne1
{[%clk 00:00:04]} {[%emt 00:00:05]} d3 {[%clk 00:01:03]} {[%emt 00:00:10]} 18.
Qe4 {[%clk 00:00:05]} b5 {[%clk 00:00:26]} {[%emt 00:00:39]} 19. b3 {[%clk
00:00:05]} {[%emt 00:00:02]} Qa3# {[%clk 00:00:23]} {[%emt 00:00:04]} 0-1

[Event "MČR v bleskovém šachu družstev 2019"]
[Site "Teplice, Czech Republic"]
[Date "2019.09.14"]
[Round "4.12"]
[White "Sodoma, Jan"]
[Black "Routner, Jakub"]
[Result "1-0"]
[TimeControl "3 mim. + 2 s"]
[WhiteTitle "IM"]
[BlackFideId "322245"]
[WhiteElo "2193"]
[BlackElo "2138"]

1. Nf3 {[%clk 00:03:02]} {[%emt 00:00:01]} c5 {[%clk 00:02:58]} {[%emt
00:00:07]} 2. c4 {[%clk 00:03:01]} {[%emt 00:00:03]} Nc6 {[%clk 00:02:57]}
{[%emt 00:00:02]} 3. g3 {[%clk 00:02:59]} {[%emt 00:00:04]} Nf6 {[%clk
00:02:58]} {[%emt 00:00:01]} 4. Bg2 {[%clk 00:02:55]} {[%emt 00:00:06]} d5
{[%clk 00:02:59]} {[%emt 00:00:01]} 5. cxd5 {[%clk 00:02:52]} {[%emt 00:00:04]}
Nxd5 {[%clk 00:03:00]} {[%emt 00:00:01]} 6. d4 {[%clk 00:02:52]} {[%emt
00:00:02]} e6 {[%clk 00:02:38]} {[%emt 00:00:24]} 7. O-O {[%clk 00:02:45]}
{[%emt 00:00:10]} Be7 {[%clk 00:02:32]} {[%emt 00:00:08]} 8. dxc5 {[%clk
00:02:27]} {[%emt 00:00:20]} Bxc5 {[%clk 00:02:33]} {[%emt 00:00:01]} 9. Qc2
{[%clk 00:02:24]} {[%emt 00:00:05]} Bb6 {[%clk 00:02:29]} {[%emt 00:00:06]} 10.
Rd1 {[%clk 00:02:21]} {[%emt 00:00:04]} Qe7 {[%clk 00:02:21]} {[%emt 00:00:10]}
11. e4 {[%clk 00:02:14]} {[%emt 00:00:10]} Ndb4 {[%clk 00:02:13]} {[%emt
00:00:09]} 12. Qe2 {[%clk 00:02:07]} {[%emt 00:00:08]} O-O {[%clk 00:02:11]}
{[%emt 00:00:04]} 13. a3 {[%clk 00:02:06]} {[%emt 00:00:03]} Na6 {[%clk
00:02:11]} {[%emt 00:00:02]} 14. b4 {[%clk 00:02:06]} {[%emt 00:00:02]} Nc7
{[%clk 00:02:04]} {[%emt 00:00:10]} 15. Bb2 {[%clk 00:02:06]} {[%emt 00:00:02]}
a6 {[%clk 00:01:19]} {[%emt 00:00:46]} 16. Nc3 {[%clk 00:02:06]} {[%emt
00:00:02]} Na7 {[%clk 00:01:08]} {[%emt 00:00:14]} 17. Na4 {[%clk 00:02:02]}
{[%emt 00:00:06]} 1-0

[Event "MČR v bleskovém šachu družstev 2019"]
[Site "Teplice, Czech Republic"]
[Date "2019.09.14"]
[Round "4.13"]
[White "Sprenar, Petr"]
[Black "Rubes, Jan"]
[Result "0-1"]
[TimeControl "3 mim. + 2 s"]
[BlackTitle "FM"]
[WhiteFideId "397164"]
[BlackFideId "338176"]
[WhiteElo "2173"]
[BlackElo "2316"]

1. d4 {[%clk 00:03:02]} Nf6 {[%clk 00:03:03]} {[%emt 00:00:02]} 2. Nf3 {[%clk
00:03:03]} e6 {[%clk 00:03:03]} {[%emt 00:00:02]} 3. c4 {[%clk 00:03:03]}
{[%emt 00:00:03]} c5 {[%clk 00:03:04]} 4. g3 {[%clk 00:02:50]} {[%emt
00:00:14]} cxd4 {[%clk 00:03:04]} {[%emt 00:00:03]} 5. Nxd4 {[%clk 00:02:50]}
{[%emt 00:00:02]} a6 {[%clk 00:02:59]} {[%emt 00:00:07]} 6. Bg2 {[%clk
00:02:51]} {[%emt 00:00:02]} Qc7 {[%clk 00:03:00]} 7. O-O {[%clk 00:02:46]}
{[%emt 00:00:06]} Be7 {[%clk 00:02:56]} {[%emt 00:00:06]} 8. Nc3 {[%clk
00:02:41]} {[%emt 00:00:07]} O-O {[%clk 00:02:55]} {[%emt 00:00:03]} 9. b3
{[%clk 00:02:41]} {[%emt 00:00:02]} d5 {[%clk 00:02:55]} {[%emt 00:00:01]} 10.
Bb2 {[%clk 00:02:17]} {[%emt 00:00:26]} dxc4 {[%clk 00:02:36]} {[%emt
00:00:21]} 11. Rc1 {[%clk 00:02:18]} {[%emt 00:00:01]} e5 {[%clk 00:02:36]}
{[%emt 00:00:02]} 12. Nf3 {[%clk 00:02:09]} {[%emt 00:00:10]} Nc6 {[%clk
00:02:37]} {[%emt 00:00:01]} 13. bxc4 {[%clk 00:02:08]} {[%emt 00:00:03]} Qa5
{[%clk 00:01:44]} {[%emt 00:00:55]} 14. Nd5 {[%clk 00:02:02]} {[%emt 00:00:08]}
Nxd5 {[%clk 00:01:36]} {[%emt 00:00:10]} 15. cxd5 {[%clk 00:02:02]} {[%emt
00:00:02]} Qxa2 {[%clk 00:01:28]} {[%emt 00:00:11]} 16. Bc3 {[%clk 00:01:40]}
{[%emt 00:00:24]} Nd4 {[%clk 00:01:01]} {[%emt 00:00:28]} 17. Nxd4 {[%clk
00:01:36]} {[%emt 00:00:06]} exd4 {[%clk 00:01:02]} 18. Bxd4 {[%clk 00:01:32]}
{[%emt 00:00:07]} Bg4 {[%clk 00:00:55]} {[%emt 00:00:09]} 19. Re1 {[%clk
00:01:24]} {[%emt 00:00:10]} Rad8 {[%clk 00:00:37]} {[%emt 00:00:20]} 20. h3
{[%clk 00:01:22]} {[%emt 00:00:04]} Bh5 {[%clk 00:00:38]} {[%emt 00:00:02]} 21.
g4 {[%clk 00:01:22]} {[%emt 00:00:01]} Bg6 {[%clk 00:00:39]} 22. Rc7 {[%clk
00:01:21]} {[%emt 00:00:04]} Bb4 {[%clk 00:00:38]} {[%emt 00:00:04]} 23. Rf1
{[%clk 00:01:21]} {[%emt 00:00:01]} Rfe8 {[%clk 00:00:36]} {[%emt 00:00:04]} 24.
Bf3 {[%clk 00:01:14]} {[%emt 00:00:09]} b5 {[%clk 00:00:37]} 25. Qa1 {[%clk
00:01:11]} {[%emt 00:00:05]} Rxe2 {[%clk 00:00:29]} {[%emt 00:00:10]} 26. Bxe2
{[%clk 00:01:08]} {[%emt 00:00:06]} Qxe2 {[%clk 00:00:30]} 27. Bxg7 {[%clk
00:01:05]} {[%emt 00:00:04]} Bd6 {[%clk 00:00:17]} {[%emt 00:00:15]} 28. Bh8
{[%clk 00:00:55]} {[%emt 00:00:12]} Bf8 {[%clk 00:00:19]} 29. Re1 {[%clk
00:00:51]} {[%emt 00:00:06]} Qf3 {[%clk 00:00:18]} {[%emt 00:00:03]} 30. Bf6
{[%clk 00:00:21]} {[%emt 00:00:32]} Qxh3 {[%clk 00:00:12]} {[%emt 00:00:08]} 31.
Qd4 {[%emt 00:00:09]} Ra8 {[%clk 00:00:04]} {[%emt 00:00:09]} 32. d6 {[%clk
00:00:14]} {[%emt 00:00:04]} b4 {[%clk 00:00:03]} {[%emt 00:00:03]} 33. d7
{[%clk 00:00:14]} {[%emt 00:00:01]} b3 {[%clk 00:00:03]} {[%emt 00:00:02]} 34.
d8=Q {[%clk 00:00:12]} {[%emt 00:00:04]} Rxd8 {[%clk 00:00:04]} 35. Bxd8 {[%clk
00:00:11]} {[%emt 00:00:04]} b2 {[%clk 00:00:05]} {[%emt 00:00:01]} 36. Re8
{[%clk 00:00:10]} {[%emt 00:00:03]} b1=Q+ {[%clk 00:00:04]} {[%emt 00:00:03]}
0-1

[Event "MČR v bleskovém šachu družstev 2019"]
[Site "Teplice, Czech Republic"]
[Date "2019.09.14"]
[Round "4.15"]
[White "Spicka, Jan"]
[Black "Kral, David"]
[Result "0-1"]
[TimeControl "3 mim. + 2 s"]
[WhiteFideId "366781"]
[BlackFideId "326097"]
[WhiteElo "1930"]
[BlackElo "2028"]

1. e4 {[%emt 00:19:11]} c5 2. Nf3 {[%emt 00:00:02]} Nc6 3. d4 cxd4 {[%emt
00:00:01]} 4. Nxd4 Nf6 5. Nc3 {[%emt 00:00:04]} g6 {[%emt 00:00:02]} 6. Be3
{[%emt 00:00:04]} Bg7 7. Qd2 {[%emt 00:00:15]} O-O {[%emt 00:00:02]} 8. O-O-O
{[%emt 00:00:02]} a6 {[%emt 00:00:02]} 9. f3 {[%emt 00:00:08]} d6 {[%emt
00:00:11]} 10. g4 {[%emt 00:00:06]} Qc7 {[%emt 00:00:06]} 11. h4 {[%emt
00:00:05]} b5 {[%emt 00:00:14]} 12. h5 {[%emt 00:00:03]} b4 {[%emt 00:00:07]}
13. Nb1 {[%emt 00:01:05]} a5 {[%emt 00:00:15]} 14. hxg6 {[%emt 00:00:05]} fxg6
{[%emt 00:00:46]} 15. Bc4+ {[%emt 00:00:40]} Kh8 {[%emt 00:00:09]} 16. g5
{[%emt 00:00:06]} Nh5 {[%emt 00:00:18]} 17. Bd5 {[%emt 00:00:03]} Bd7 {[%emt
00:00:07]} 18. Bxc6 {[%emt 00:00:09]} Bxc6 {[%emt 00:00:07]} 19. Ne6 Qb7 {[%emt
00:00:16]} 20. Nxf8 {[%emt 00:00:12]} Rxf8 {[%emt 00:00:01]} 21. Rdf1 {[%emt
00:00:10]} Ng3 {[%emt 00:00:06]} 22. Qh2 {[%emt 00:00:01]} Nxh1 {[%emt
00:00:16]} 23. Rxh1 h5 24. gxh6 {[%emt 00:00:02]} Be5 {[%emt 00:00:04]} 25. Qg2
{[%emt 00:00:02]} Kh7 {[%emt 00:00:10]} 26. Nd2 a4 {[%emt 00:00:05]} 27. Rg1
{[%emt 00:00:01]} Rg8 28. Nc4 {[%emt 00:00:02]} Bf6 {[%emt 00:00:04]} 29. Nd2
{[%emt 00:00:04]} Qc7 {[%emt 00:00:02]} 30. f4 {[%emt 00:00:02]} b3 {[%emt
00:00:03]} 31. axb3 {[%emt 00:00:05]} axb3 {[%emt 00:00:01]} 32. Nxb3 Ba4
{[%emt 00:00:04]} 33. f5 {[%emt 00:00:18]} g5 {[%emt 00:00:08]} 34. c3 {[%emt
00:00:02]} Bxb3 {[%emt 00:00:02]} 35. Qd2 {[%emt 00:00:02]} Qa5 {[%emt
00:00:04]} 36. Qf2 {[%emt 00:00:02]} Qa1+ {[%emt 00:00:02]} 37. Kd2 Qxb2+ 38.
Kd3 Qxc3+ {[%emt 00:00:04]} 39. Ke2 {[%emt 00:00:01]} Bc4+ {[%emt 00:00:01]} 40.
Kf3 {[%emt 00:00:01]} Qe5 {[%emt 00:00:07]} 41. Qc2 {[%emt 00:00:02]} d5 {[%emt
00:00:04]} 42. exd5 {[%emt 00:00:02]} Bxd5+ 43. Ke2 {[%emt 00:00:03]} Be4
{[%emt 00:00:03]} 44. Qd2 {[%emt 00:00:02]} Qb5+ {[%emt 00:00:02]} 45. Kf2
{[%emt 00:00:02]} Qd3 {[%emt 00:00:01]} 46. Qxd3 {[%emt 00:00:03]} Bxd3 47. Rd1
Bxf5 {[%emt 00:00:01]} 48. Rh1 {[%emt 00:00:03]} g4 {[%emt 00:00:01]} 49. Kg3
{[%emt 00:00:03]} Be5+ {[%emt 00:00:01]} 50. Kf2 g3+ 51. Kf1 {[%emt 00:00:01]}
g2+ {[%emt 00:00:01]} 52. Kxg2 {[%emt 00:00:02]} 0-1

[Event "MČR v bleskovém šachu družstev 2019"]
[Site "Teplice, Czech Republic"]
[Date "2019.09.14"]
[Round "4.16"]
[White "Krutsky, Martin"]
[Black "Srba, Stanislav"]
[Result "1-0"]
[TimeControl "3 mim. + 2 s"]
[WhiteFideId "361526"]
[BlackFideId "364720"]
[WhiteElo "1974"]
[BlackElo "1883"]

1. e4 {[%clk 00:03:03]} {[%emt 00:22:07]} e6 {[%clk 00:03:03]} 2. d4 {[%clk
00:03:04]} {[%emt 00:00:01]} d5 {[%clk 00:03:04]} 3. e5 {[%clk 00:03:05]} c5
{[%clk 00:03:05]} 4. c3 {[%clk 00:03:06]} Nc6 {[%clk 00:03:06]} 5. Nf3 {[%clk
00:03:07]} {[%emt 00:00:02]} c4 {[%clk 00:03:05]} {[%emt 00:00:03]} 6. g3
{[%clk 00:03:05]} {[%emt 00:00:04]} b5 {[%clk 00:03:03]} {[%emt 00:00:03]} 7.
Bg2 {[%clk 00:02:55]} {[%emt 00:00:12]} b4 {[%clk 00:03:00]} {[%emt 00:00:05]}
8. O-O {[%clk 00:02:54]} {[%emt 00:00:03]} bxc3 {[%clk 00:02:43]} {[%emt
00:00:19]} 9. bxc3 {[%clk 00:02:43]} {[%emt 00:00:14]} Rb8 {[%clk 00:02:41]}
{[%emt 00:00:03]} 10. Ba3 {[%clk 00:02:06]} {[%emt 00:00:39]} Be7 {[%clk
00:02:33]} {[%emt 00:00:10]} 11. Bxe7 {[%clk 00:01:59]} {[%emt 00:00:09]} Ngxe7
{[%clk 00:02:34]} {[%emt 00:00:02]} 12. Qc2 {[%clk 00:01:38]} {[%emt 00:00:23]}
O-O {[%clk 00:02:08]} {[%emt 00:00:28]} 13. Nbd2 {[%clk 00:01:32]} {[%emt
00:00:07]} Bd7 {[%clk 00:02:05]} {[%emt 00:00:04]} 14. Nh4 {[%clk 00:01:16]}
{[%emt 00:00:19]} Ng6 {[%clk 00:01:54]} {[%emt 00:00:14]} 15. Nxg6 {[%clk
00:01:15]} {[%emt 00:00:03]} hxg6 {[%clk 00:01:43]} {[%emt 00:00:13]} 16. h4
{[%clk 00:01:04]} {[%emt 00:00:12]} Ne7 {[%clk 00:01:22]} {[%emt 00:00:23]} 17.
Nf3 {[%clk 00:00:52]} {[%emt 00:00:13]} f6 {[%clk 00:01:15]} {[%emt 00:00:09]}
18. Bh3 {[%clk 00:00:39]} {[%emt 00:00:16]} Rb6 {[%clk 00:00:27]} {[%emt
00:00:49]} 19. Rab1 {[%clk 00:00:17]} {[%emt 00:00:24]} Qc7 {[%clk 00:00:19]}
{[%emt 00:00:11]} 20. Rxb6 {[%clk 00:00:18]} axb6 {[%clk 00:00:19]} {[%emt
00:00:02]} 21. Rb1 {[%clk 00:00:19]} Ra8 {[%clk 00:00:18]} {[%emt 00:00:03]} 22.
Rb2 {[%clk 00:00:15]} {[%emt 00:00:05]} b5 {[%clk 00:00:18]} {[%emt 00:00:03]}
23. Qb1 {[%clk 00:00:14]} {[%emt 00:00:03]} Ra3 {[%clk 00:00:17]} {[%emt
00:00:03]} 24. Qc2 {[%clk 00:00:14]} {[%emt 00:00:02]} Nf5 {[%clk 00:00:11]}
{[%emt 00:00:08]} 25. Nd2 {[%clk 00:00:14]} {[%emt 00:00:02]} Qa5 {[%emt
00:00:03]} 26. Nb1 Ra4 {[%clk 00:00:09]} {[%emt 00:00:03]} 27. Kg2 {[%clk
00:00:14]} {[%emt 00:00:03]} b4 {[%clk 00:00:07]} {[%emt 00:00:05]} 28. cxb4
Rxb4 {[%clk 00:00:08]} 29. exf6 {[%clk 00:00:15]} gxf6 {[%clk 00:00:07]} {[%emt
00:00:03]} 30. Qd2 {[%clk 00:00:17]} Nxh4+ {[%clk 00:00:03]} {[%emt 00:00:06]}
31. gxh4 {[%clk 00:00:18]} Rxb2 {[%clk 00:00:03]} {[%emt 00:00:02]} 32. Qxa5
{[%clk 00:00:19]} {[%emt 00:00:01]} Rxb1 {[%clk 00:00:04]} {[%emt 00:00:01]} 33.
Qd8+ {[%clk 00:00:19]} Kh7 {[%clk 00:00:04]} {[%emt 00:00:02]} 34. Qxd7+ {[%emt
00:00:06]} 1-0

[Event "MČR v bleskovém šachu družstev 2019"]
[Site "Teplice, Czech Republic"]
[Date "2019.09.14"]
[Round "4.17"]
[White "Horky, Pavel"]
[Black "Istona, Martin"]
[Result "0-1"]
[TimeControl "3 mim. + 2 s"]
[BlackTitle "FM"]
[WhiteFideId "388580"]
[BlackFideId "14923475"]
[WhiteElo "2018"]
[BlackElo "2078"]

1. e4 {[%clk 00:03:03]} c5 {[%clk 00:03:02]} {[%emt 00:00:02]} 2. Nc3 {[%clk
00:03:03]} {[%emt 00:00:02]} g6 {[%clk 00:03:02]} {[%emt 00:00:02]} 3. g3
{[%clk 00:03:02]} {[%emt 00:00:03]} Bg7 {[%clk 00:03:04]} 4. Bg2 {[%clk
00:03:02]} {[%emt 00:00:02]} Nc6 {[%clk 00:03:05]} 5. Nf3 {[%clk 00:03:02]}
{[%emt 00:00:04]} d6 {[%clk 00:03:04]} {[%emt 00:00:03]} 6. O-O {[%clk
00:02:57]} {[%emt 00:00:06]} Rb8 {[%clk 00:03:02]} {[%emt 00:00:04]} 7. a4
{[%clk 00:02:56]} {[%emt 00:00:03]} a6 {[%clk 00:03:00]} {[%emt 00:00:04]} 8.
d3 {[%clk 00:02:39]} {[%emt 00:00:19]} b5 {[%clk 00:03:01]} {[%emt 00:00:02]} 9.
axb5 {[%clk 00:02:37]} {[%emt 00:00:03]} axb5 {[%clk 00:03:02]} {[%emt
00:00:01]} 10. Re1 {[%clk 00:02:26]} {[%emt 00:00:13]} b4 {[%clk 00:03:02]}
{[%emt 00:00:03]} 11. Nd5 {[%clk 00:02:27]} {[%emt 00:00:01]} e6 {[%clk
00:02:32]} {[%emt 00:00:32]} 12. Ne3 {[%clk 00:02:24]} {[%emt 00:00:04]} Nge7
{[%clk 00:02:31]} {[%emt 00:00:03]} 13. Nc4 {[%clk 00:01:58]} {[%emt 00:00:28]}
O-O {[%clk 00:01:59]} {[%emt 00:00:34]} 14. e5 {[%clk 00:01:53]} {[%emt
00:00:08]} d5 {[%clk 00:01:49]} {[%emt 00:00:12]} 15. Ncd2 {[%clk 00:01:27]}
{[%emt 00:00:28]} Qc7 {[%clk 00:01:23]} {[%emt 00:00:27]} 16. Qe2 {[%clk
00:01:14]} {[%emt 00:00:14]} Nf5 {[%clk 00:01:05]} {[%emt 00:00:21]} 17. Nb3
{[%clk 00:00:58]} {[%emt 00:00:18]} Ncd4 {[%clk 00:00:47]} {[%emt 00:00:20]} 18.
Nbxd4 {[%clk 00:00:57]} {[%emt 00:00:03]} Nxd4 {[%clk 00:00:48]} {[%emt
00:00:02]} 19. Nxd4 {[%clk 00:00:55]} {[%emt 00:00:03]} cxd4 {[%clk 00:00:49]}
20. Qd1 {[%clk 00:00:37]} {[%emt 00:00:20]} b3 {[%clk 00:00:49]} {[%emt
00:00:02]} 21. cxb3 {[%clk 00:00:33]} {[%emt 00:00:07]} Qb6 {[%clk 00:00:49]}
{[%emt 00:00:01]} 22. Ra3 {[%clk 00:00:29]} {[%emt 00:00:07]} Bd7 {[%clk
00:00:51]} 23. Bd2 {[%clk 00:00:26]} {[%emt 00:00:05]} Rfc8 {[%clk 00:00:50]}
{[%emt 00:00:02]} 24. b4 {[%clk 00:00:15]} {[%emt 00:00:13]} Bf8 {[%clk
00:00:50]} {[%emt 00:00:02]} 25. Ra2 {[%clk 00:00:03]} {[%emt 00:00:14]} Bxb4
{[%clk 00:00:49]} {[%emt 00:00:03]} 26. Bxb4 {[%emt 00:00:01]} Qxb4 {[%emt
00:00:01]} 27. Qe2 {[%clk 00:00:04]} {[%emt 00:00:02]} Qb3 {[%clk 00:00:48]}
{[%emt 00:00:04]} 28. Ra3 {[%clk 00:00:04]} {[%emt 00:00:02]} Qxb2 {[%clk
00:00:47]} {[%emt 00:00:03]} 29. Ra7 {[%clk 00:00:05]} Qxe2 {[%clk 00:00:38]}
{[%emt 00:00:11]} 30. Rxe2 {[%clk 00:00:07]} {[%emt 00:00:01]} Rb1+ {[%clk
00:00:39]} 31. Bf1 {[%clk 00:00:08]} {[%emt 00:00:01]} Bb5 {[%clk 00:00:40]} 32.
Rd2 {[%clk 00:00:08]} {[%emt 00:00:02]} Rcc1 {[%clk 00:00:38]} {[%emt
00:00:03]} 33. Kg2 {[%clk 00:00:10]} Rxf1 {[%clk 00:00:39]} {[%emt 00:00:02]}
34. Rda2 {[%clk 00:00:10]} {[%emt 00:00:02]} Bxd3 {[%clk 00:00:37]} {[%emt
00:00:05]} 35. Rd7 {[%clk 00:00:11]} g5 {[%clk 00:00:17]} {[%emt 00:00:21]} 36.
Raa7 {[%clk 00:00:11]} {[%emt 00:00:02]} Rg1+ {[%clk 00:00:10]} {[%emt
00:00:09]} 37. Kf3 {[%clk 00:00:09]} {[%emt 00:00:04]} Bg6 {[%clk 00:00:11]}
{[%emt 00:00:01]} 38. h4 {[%clk 00:00:09]} {[%emt 00:00:03]} Bh5+ {[%clk
00:00:07]} {[%emt 00:00:06]} 39. g4 {[%clk 00:00:09]} {[%emt 00:00:02]} Bxg4#
{[%clk 00:03:03]} {[%emt 00:00:01]} 0-1